[Event "44th Chess Olympiad Open 2022"]
[Site "Chennai"]
[Date "2022.08.07"]
[Round "9.63"]
[White "Pesqueira, Jose"]
[Black "Villanueva, Marcio"]
[Result "1/2-1/2"]
[WhiteElo "1809"]
[BlackElo "2009"]
[Annotator "NA RC"]
[PlyCount "71"]
[EventDate "2022.??.??"]
[TimeControl "60"]

1. e4 {[%emt 0:00:03]} c5 {[%emt 0:00:06]} 2. Nf3 {[%emt 0:00:08]} d6 {[%emt 0:
00:00]} 3. c3 {[%emt 0:00:37]} Nf6 {[%emt 0:03:36]} 4. Be2 {[%emt 0:01:06]} Bd7
{[%emt 0:00:35]} 5. d3 {[%emt 0:02:13]} e6 {[%emt 0:01:47]} 6. Nbd2 {[%emt 0:
00:00]} Nc6 {[%emt 0:00:21]} 7. O-O {[%emt 0:00:52]} Be7 {[%emt 0:01:54]} 8.
Re1 {[%emt 0:02:33]} O-O {[%emt 0:00:06]} 9. Bf1 {[%emt 0:00:42]} Rc8 {[%emt 0:
00:00]} 10. e5 {[%emt 0:06:30]} Nxe5 {[%emt 0:00:37]} 11. Nxe5 {[%emt 0:00:13]}
dxe5 {[%emt 0:00:05]} 12. Nc4 {[%emt 0:09:05]} Qc7 {[%emt 0:03:33]} 13. Nxe5 {
[%emt 0:01:59]} Bd6 {[%emt 0:03:24]} 14. Bf4 {[%emt 0:16:47]} Rfd8 {[%emt 0:00:
00]} 15. Nxd7 {[%emt 0:04:33]} Rxd7 {[%emt 0:04:47]} 16. Bxd6 {[%emt 0:00:09]}
Qxd6 {[%emt 0:00:10]} 17. Qf3 {[%emt 0:04:46]} Rcd8 {[%emt 0:01:39]} 18. Rad1 {
[%emt 0:07:49]} Qb6 {[%emt 0:00:16]} 19. Rd2 {[%emt 0:01:10]} Qa5 {[%emt 0:00:
00]} 20. a3 {[%emt 0:01:57]} b5 {[%emt 0:03:05]} 21. g3 {[%emt 0:02:17]} h6 {
[%emt 0:03:47]} 22. Re5 {[%emt 0:09:02]} Qc7 {[%emt 0:01:27]} 23. d4 {[%emt 0:
00:00]} cxd4 {[%emt 0:02:36]} 24. Rxb5 {[%emt 0:00:09]} dxc3 {[%emt 0:01:50]}
25. Rxd7 {[%emt 0:00:27]} Rxd7 {[%emt 0:00:39]} 26. bxc3 {[%emt 0:02:10]} Nd5 {
[%emt 0:00:13]} 27. c4 {[%emt 0:00:41]} Ne7 {[%emt 0:02:47]} 28. Qa8+ {[%emt 0:
00:00]} Rd8 {[%emt 0:03:17]} 29. Qb7 {[%emt 0:00:09]} Rc8 {[%emt 0:00:38]} 30.
Qa6 {[%emt 0:02:28]} Rb8 {[%emt 0:02:12]} 31. a4 {[%emt 0:01:38]} Nc6 {[%emt 0:
00:00]} 32. a5 {[%emt 0:02:42]} Rxb5 {[%emt 0:00:31]} 33. Qxb5 {[%emt 0:01:25]}
Nxa5 {[%emt 0:00:06]} 34. c5 {[%emt 0:00:41]} Nc6 {[%emt 0:03:14]} 35. Bg2 {
[%emt 0:01:23]} Nd8 {[%emt 0:02:16]} 36. c6 {[%emt 0:00:29]} 1/2-1/2

[Event "44th Chess Olympiad Open 2022"]
[Site "Chennai"]
[Date "2022.08.07"]
[Round "9.64"]
[White "Cabezas Solano, David Alejandro"]
[Black "Asante Debesai Zerabruk"]
[Result "1-0"]
[WhiteElo "2196"]
[BlackElo "1785"]
[Annotator "NA RC"]
[PlyCount "51"]
[EventDate "2022.??.??"]
[TimeControl "60"]

1. d4 {[%emt 0:00:03]} Nf6 {[%emt 0:00:24]} 2. Nf3 {[%emt 0:00:09]} e6 {
[%emt 0:00:04]} 3. g3 {[%emt 0:00:09]} d5 {[%emt 0:00:06]} 4. Bg2 {[%emt 0:00:
00]} Be7 {[%emt 0:00:16]} 5. O-O {[%emt 0:00:07]} b5 {[%emt 0:00:07]} 6. a4 {
[%emt 0:00:22]} c6 {[%emt 0:00:03]} 7. c3 {[%emt 0:03:47]} O-O {[%emt 0:00:11]}
8. Nbd2 {[%emt 0:00:55]} Bb7 {[%emt 0:06:29]} 9. Qc2 {[%emt 0:05:49]} a5 {
[%emt 0:01:08]} 10. e4 {[%emt 0:01:46]} Nbd7 {[%emt 0:21:48]} 11. Re1 {[%emt 0:
00:00]} Qb6 {[%emt 0:07:21]} 12. e5 {[%emt 0:11:05]} Ne8 {[%emt 0:12:56]} 13.
h4 {[%emt 0:00:41]} c5 {[%emt 0:01:44]} 14. axb5 {[%emt 0:01:20]} Rc8 {[%emt 0:
00:00]} 15. Nb3 {[%emt 0:06:35]} cxd4 {[%emt 0:14:31]} 16. Nfxd4 {[%emt 0:00:
00]} Bc5 {[%emt 0:02:33]} 17. Be3 {[%emt 0:02:53]} f6 {[%emt 0:08:03]} 18. Nxc5
{[%emt 0:01:19]} Nxc5 {[%emt 0:00:09]} 19. Nb3 {[%emt 0:04:56]} fxe5 {[%emt 0:
00:00]} 20. Nxc5 {[%emt 0:00:52]} Rxc5 {[%emt 0:00:07]} 21. Bxc5 {[%emt 0:00:
00]} Qxc5 {[%emt 0:00:02]} 22. Rxe5 {[%emt 0:00:17]} Rf6 {[%emt 0:03:05]} 23.
Qe2 {[%emt 0:00:53]} Nc7 {[%emt 0:00:46]} 24. Rxa5 {[%emt 0:00:57]} Kf7 {
[%emt 0:01:24]} 25. b4 {[%emt 0:01:07]} Qb6 {[%emt 0:01:35]} 26. Qe3 {[%emt 0:
00:00]} 1-0

[Event "44th Chess Olympiad Open 2022"]
[Site "Chennai"]
[Date "2022.08.07"]
[Round "9.64"]
[White "Kibrom Weldegebriel Beraki"]
[Black "Arias Santana, Mauricio"]
[Result "0-1"]
[WhiteElo "1793"]
[BlackElo "2318"]
[Annotator "RC"]
[PlyCount "68"]
[EventDate "2022.??.??"]
[TimeControl "60"]

1. d4 {[%emt 0:00:05]} Nf6 {[%emt 0:00:01]} 2. c4 {[%emt 0:00:07]} c5 {[%emt 0:
00:00]} 3. Nf3 {[%emt 0:00:30]} cxd4 {[%emt 0:00:02]} 4. Nxd4 {[%emt 0:00:13]}
b6 {[%emt 0:00:07]} 5. Nc3 {[%emt 0:00:37]} Bb7 {[%emt 0:00:02]} 6. Bg5 {
[%emt 0:01:42]} d6 {[%emt 0:00:17]} 7. f3 {[%emt 0:03:40]} Nbd7 {[%emt 0:00:16]
} 8. e4 {[%emt 0:00:29]} e6 {[%emt 0:00:04]} 9. Be2 {[%emt 0:10:49]} a6 {
[%emt 0:00:01]} 10. O-O {[%emt 0:00:21]} Be7 {[%emt 0:00:02]} 11. Kh1 {[%emt 0:
00:00]} O-O {[%emt 0:00:03]} 12. Be3 {[%emt 0:02:09]} Rc8 {[%emt 0:00:03]} 13.
Rc1 {[%emt 0:01:07]} Qc7 {[%emt 0:00:12]} 14. Qd2 {[%emt 0:02:57]} Qb8 {
[%emt 0:00:08]} 15. a3 {[%emt 0:01:22]} Bd8 {[%emt 0:00:10]} 16. Bd3 {[%emt 0:
00:00]} Re8 {[%emt 0:07:46]} 17. b4 {[%emt 0:02:40]} Ne5 {[%emt 0:04:09]} 18.
Nce2 {[%emt 0:01:40]} Bc7 {[%emt 0:01:10]} 19. Bb1 {[%emt 0:02:46]} d5 {
[%emt 0:20:16]} 20. cxd5 {[%emt 0:02:03]} exd5 {[%emt 0:00:03]} 21. exd5 {
[%emt 0:00:38]} Nxd5 {[%emt 0:00:31]} 22. Bg1 {[%emt 0:02:20]} b5 {[%emt 0:00:
00]} 23. Qg5 {[%emt 0:07:38]} h6 {[%emt 0:01:26]} 24. Qf5 {[%emt 0:03:23]} g6 {
[%emt 0:06:51]} 25. Qh3 {[%emt 0:01:36]} h5 {[%emt 0:00:02]} 26. f4 {[%emt 0:
00:00]} Ng4 {[%emt 0:00:03]} 27. f5 {[%emt 0:01:58]} Nde3 {[%emt 0:02:36]} 28.
Bxe3 {[%emt 0:19:25]} Rxe3 {[%emt 0:02:49]} 29. Qh4 {[%emt 0:04:25]} Qa8 {
[%emt 0:03:10]} 30. Nf4 {[%emt 0:10:16]} Bd8 {[%emt 0:04:39]} 31. fxg6 {
[%emt 0:01:31]} Bxh4 {[%emt 0:00:03]} 32. gxf7+ {[%emt 0:00:35]} Kxf7 {[%emt 0:
00:00]} 33. Nxh5+ {[%emt 0:04:46]} Bf2 {[%emt 0:00:58]} 34. Ba2+ {[%emt 0:00:
00]} Kf8 {[%emt 0:03:12]} 0-1

[Event "44th Chess Olympiad Open 2022"]
[Site "Chennai"]
[Date "2022.08.07"]
[Round "9.64"]
[White "Samuel Merhawi Gebrehiwet"]
[Black "Chaves Sanchez, Gabriel A"]
[Result "0-1"]
[WhiteElo "1616"]
[BlackElo "2125"]
[Annotator "NA RC"]
[PlyCount "60"]
[EventDate "2022.??.??"]
[TimeControl "60"]

1. Nf3 {[%emt 0:00:15]} Nf6 {[%emt 0:00:22]} 2. c4 {[%emt 0:00:10]} e6 {
[%emt 0:00:09]} 3. d4 {[%emt 0:00:31]} d5 {[%emt 0:00:48]} 4. g3 {[%emt 0:00:
00]} dxc4 {[%emt 0:00:23]} 5. Qa4+ {[%emt 0:01:14]} Nbd7 {[%emt 0:00:33]} 6.
Qxc4 {[%emt 0:00:31]} a6 {[%emt 0:00:10]} 7. Bg2 {[%emt 0:02:25]} b5 {[%emt 0:
00:00]} 8. Qc2 {[%emt 0:03:04]} Bb7 {[%emt 0:00:07]} 9. O-O {[%emt 0:00:33]} c5
{[%emt 0:01:35]} 10. dxc5 {[%emt 0:00:36]} Bxc5 {[%emt 0:00:41]} 11. Nc3 {
[%emt 0:01:57]} O-O {[%emt 0:01:02]} 12. Bf4 {[%emt 0:00:42]} Rc8 {[%emt 0:00:
00]} 13. Qb3 {[%emt 0:05:53]} Qb6 {[%emt 0:03:31]} 14. Ne5 {[%emt 0:01:14]}
Nxe5 {[%emt 0:09:56]} 15. Bxe5 {[%emt 0:00:49]} Ng4 {[%emt 0:00:55]} 16. Bxb7 {
[%emt 0:01:14]} Bxf2+ {[%emt 0:00:16]} 17. Kg2 {[%emt 0:01:49]} Qxb7+ {[%emt 0:
00:00]} 18. e4 {[%emt 0:01:09]} Nxe5 {[%emt 0:00:18]} 19. Rxf2 {[%emt 0:01:09]}
Rfd8 {[%emt 0:01:09]} 20. Rd1 {[%emt 0:06:00]} Rxd1 {[%emt 0:00:43]} 21. Qxd1 {
[%emt 0:00:16]} b4 {[%emt 0:01:09]} 22. Qb3 {[%emt 0:02:02]} Rc7 {[%emt 0:00:
00]} 23. Qa4 {[%emt 0:02:56]} Rd7 {[%emt 0:01:20]} 24. Ne2 {[%emt 0:11:35]}
Qxe4+ {[%emt 0:00:14]} 25. Kg1 {[%emt 0:00:29]} h6 {[%emt 0:04:31]} 26. Qxa6 {
[%emt 0:00:42]} Rd1+ {[%emt 0:00:18]} 27. Rf1 {[%emt 0:00:16]} Qe3+ {[%emt 0:
00:00]} 28. Kg2 {[%emt 0:01:01]} Rd2 {[%emt 0:01:02]} 29. Re1 {[%emt 0:03:46]}
Nd3 {[%emt 0:00:24]} 30. Qa8+ {[%emt 0:09:37]} Kh7 {[%emt 0:00:05]} 0-1

[Event "44th Chess Olympiad Open 2022"]
[Site "Chennai"]
[Date "2022.08.07"]
[Round "9.65"]
[White "Isaakidis, Alexandros"]
[Black "Manan, Yoboue Hermann"]
[Result "1/2-1/2"]
[WhiteElo "2165"]
[BlackElo "2066"]
[Annotator "RC"]
[PlyCount "91"]
[EventDate "2022.??.??"]
[TimeControl "60"]

1. d4 {[%emt 0:00:10]} d5 {[%emt 0:00:20]} 2. c4 {[%emt 0:00:18]} e6 {[%emt 0:
00:00]} 3. Nc3 {[%emt 0:00:07]} Nf6 {[%emt 0:00:41]} 4. cxd5 {[%emt 0:00:11]}
exd5 {[%emt 0:00:23]} 5. Bg5 {[%emt 0:00:09]} c6 {[%emt 0:00:39]} 6. e3 {
[%emt 0:00:09]} Be7 {[%emt 0:00:57]} 7. Bd3 {[%emt 0:00:11]} h6 {[%emt 0:00:30]
} 8. Bh4 {[%emt 0:00:19]} O-O {[%emt 0:01:24]} 9. Qc2 {[%emt 0:01:44]} Re8 {
[%emt 0:00:50]} 10. Nf3 {[%emt 0:03:08]} Nbd7 {[%emt 0:03:49]} 11. O-O {
[%emt 0:00:30]} a6 {[%emt 0:03:26]} 12. Rab1 {[%emt 0:05:09]} Ne4 {[%emt 0:00:
00]} 13. Bxe7 {[%emt 0:01:41]} Qxe7 {[%emt 0:00:08]} 14. Bxe4 {[%emt 0:00:19]}
dxe4 {[%emt 0:00:18]} 15. Nd2 {[%emt 0:00:07]} Nf6 {[%emt 0:01:07]} 16. b4 {
[%emt 0:03:52]} Bf5 {[%emt 0:03:18]} 17. Na4 {[%emt 0:04:07]} Nd5 {[%emt 0:00:
00]} 18. a3 {[%emt 0:10:06]} Qg5 {[%emt 0:03:07]} 19. Kh1 {[%emt 0:04:33]} Re7
{[%emt 0:04:21]} 20. Nc5 {[%emt 0:03:19]} Nf6 {[%emt 0:01:07]} 21. Rfe1 {
[%emt 0:10:12]} Ng4 {[%emt 0:09:09]} 22. Nf1 {[%emt 0:01:00]} b6 {[%emt 0:00:
00]} 23. Nb3 {[%emt 0:01:24]} Rc8 {[%emt 0:06:16]} 24. Kg1 {[%emt 0:04:47]} h5
{[%emt 0:11:34]} 25. Rbc1 {[%emt 0:03:02]} Be6 {[%emt 0:01:48]} 26. Nbd2 {
[%emt 0:01:55]} Bd5 {[%emt 0:01:13]} 27. Nb1 {[%emt 0:02:14]} Re6 {[%emt 0:00:
00]} 28. Nc3 {[%emt 0:01:39]} Rce8 {[%emt 0:00:23]} 29. Ne2 {[%emt 0:05:56]} h4
{[%emt 0:02:11]} 30. Nf4 {[%emt 0:01:09]} Rh6 {[%emt 0:00:16]} 31. h3 {[%emt 0:
00:00]} Nf6 {[%emt 0:00:10]} 32. Nh2 {[%emt 0:00:09]} Qf5 {[%emt 0:00:32]} 33.
f3 {[%emt 0:02:38]} g5 {[%emt 0:03:40]} 34. Ng4 {[%emt 0:01:06]} Nxg4 {[%emt 0:
00:00]} 35. fxg4 {[%emt 0:00:19]} Qd7 {[%emt 0:01:59]} 36. Nxd5 {[%emt 0:01:37]
} cxd5 {[%emt 0:05:28]} 37. Rf1 {[%emt 0:00:48]} Rd6 {[%emt 0:01:06]} 38. Qf2 {
[%emt 0:07:25]} f6 {[%emt 0:02:14]} 39. Rc3 {[%emt 0:02:15]} Rc8 {[%emt 0:00:
00]} 40. Rxc8+ {[%emt 0:01:14]} Qxc8 {[%emt 0:00:07]} 41. Kh2 {[%emt 0:39:00]}
Kg7 {[%emt 0:32:56]} 42. b5 {[%emt 0:00:00]} axb5 {[%emt 0:00:00]} 43. Qb2 {
[%emt 0:00:00]} Rc6 {[%emt 0:00:00]} 44. Qxb5 {[%emt 0:00:00]} Qc7+ {[%emt 0:
00:00]} 45. Kg1 {[%emt 0:00:00]} Rc1 {[%emt 0:00:00]} 46. Qxd5 {[%emt 0:01:45]}
1/2-1/2

[Event "44th Chess Olympiad Open 2022"]
[Site "Chennai"]
[Date "2022.08.07"]
[Round "9.65"]
[White "De Gondo, Simplice Armel"]
[Black "Michaelides, Konstantinos"]
[Result "1/2-1/2"]
[WhiteElo "2135"]
[BlackElo "2300"]
[Annotator "RC"]
[PlyCount "176"]
[EventDate "2022.??.??"]
[TimeControl "60"]

1. e4 {[%emt 0:00:03]} e5 {[%emt 0:00:16]} 2. Nf3 {[%emt 0:00:01]} Nc6 {
[%emt 0:00:09]} 3. Bb5 {[%emt 0:00:03]} g6 {[%emt 0:01:53]} 4. O-O {[%emt 0:00:
00]} Bg7 {[%emt 0:00:16]} 5. c3 {[%emt 0:00:03]} a6 {[%emt 0:00:37]} 6. Ba4 {
[%emt 0:00:02]} Nge7 {[%emt 0:00:12]} 7. d4 {[%emt 0:00:04]} exd4 {[%emt 0:00:
00]} 8. cxd4 {[%emt 0:00:13]} O-O {[%emt 0:00:12]} 9. Bg5 {[%emt 0:26:31]} h6 {
[%emt 0:02:06]} 10. Bxe7 {[%emt 0:00:03]} Nxe7 {[%emt 0:03:46]} 11. Nc3 {
[%emt 0:00:04]} d6 {[%emt 0:03:59]} 12. h3 {[%emt 0:02:44]} b5 {[%emt 0:03:24]}
13. Bc2 {[%emt 0:04:11]} Bb7 {[%emt 0:00:54]} 14. d5 {[%emt 0:05:19]} c6 {
[%emt 0:04:27]} 15. dxc6 {[%emt 0:04:39]} Bxc6 {[%emt 0:02:29]} 16. Nd4 {
[%emt 0:10:02]} Bb7 {[%emt 0:00:58]} 17. Bb3 {[%emt 0:03:52]} b4 {[%emt 0:00:
00]} 18. Nd5 {[%emt 0:23:07]} Nxd5 {[%emt 0:02:41]} 19. Bxd5 {[%emt 0:00:03]}
Bxd5 {[%emt 0:04:08]} 20. exd5 {[%emt 0:00:03]} Qh4 {[%emt 0:03:31]} 21. Nf3 {
[%emt 0:01:44]} Qf6 {[%emt 0:02:54]} 22. Rb1 {[%emt 0:00:03]} a5 {[%emt 0:00:
00]} 23. b3 {[%emt 0:03:09]} Rfc8 {[%emt 0:05:13]} 24. Nd2 {[%emt 0:00:19]} Ra7
{[%emt 0:14:19]} 25. Nc4 {[%emt 0:00:24]} Rc5 {[%emt 0:01:07]} 26. Qd2 {
[%emt 0:00:45]} Rd7 {[%emt 0:08:29]} 27. Rfd1 {[%emt 0:00:41]} Kh7 {[%emt 0:00:
00]} 28. Rbc1 {[%emt 0:06:48]} Qd8 {[%emt 0:09:09]} 29. Rc2 {[%emt 0:01:54]}
Rdc7 {[%emt 0:03:13]} 30. g3 {[%emt 0:00:51]} Qd7 {[%emt 0:02:30]} 31. Kg2 {
[%emt 0:01:22]} Bc3 {[%emt 0:02:52]} 32. Qd3 {[%emt 0:00:04]} Bf6 {[%emt 0:00:
00]} 33. h4 {[%emt 0:00:27]} Qg4 {[%emt 0:01:58]} 34. Ne3 {[%emt 0:02:15]} Qc8
{[%emt 0:01:06]} 35. Rxc5 {[%emt 0:00:15]} Rxc5 {[%emt 0:00:49]} 36. h5 {
[%emt 0:00:04]} Rc3 {[%emt 0:00:46]} 37. hxg6+ {[%emt 0:00:05]} fxg6 {[%emt 0:
00:00]} 38. Qe4 {[%emt 0:00:41]} Qc5 {[%emt 0:01:36]} 39. Qe6 {[%emt 0:02:07]}
Bg7 {[%emt 0:00:30]} 40. Qe7 {[%emt 0:03:04]} Qc7 {[%emt 0:00:36]} 41. Qxc7 {
[%emt 0:31:34]} Rxc7 {[%emt 0:30:02]} 42. Nc4 {[%emt 0:00:22]} Bf8 {[%emt 0:00:
00]} 43. Nxa5 {[%emt 0:00:00]} Rc2 {[%emt 0:00:00]} 44. Nc6 {[%emt 0:00:00]}
Rxa2 {[%emt 0:00:00]} 45. Nxb4 {[%emt 0:00:00]} Rb2 {[%emt 0:00:00]} 46. Rd3 {
[%emt 0:00:00]} Kg7 {[%emt 0:00:00]} 47. Nc6 {[%emt 0:00:00]} Kf7 {[%emt 0:00:
00]} 48. Rf3+ {[%emt 0:00:00]} Ke8 {[%emt 0:00:00]} 49. b4 {[%emt 0:00:00]} Bg7
{[%emt 0:00:00]} 50. Re3+ {[%emt 0:00:00]} Be5 {[%emt 0:01:58]} 51. Nxe5 {
[%emt 0:00:00]} dxe5 {[%emt 0:00:02]} 52. Rxe5+ {[%emt 0:00:00]} Kf7 {[%emt 0:
00:00]} 53. Re4 {[%emt 0:00:00]} Rd2 {[%emt 0:00:07]} 54. Kf3 {[%emt 0:00:00]}
Rxd5 {[%emt 0:00:26]} 55. Ke3 {[%emt 0:00:00]} h5 {[%emt 0:01:22]} 56. Rd4 {
[%emt 0:00:00]} Rb5 {[%emt 0:00:36]} 57. Kd3 {[%emt 0:00:00]} Kf6 {[%emt 0:00:
00]} 58. Kc4 {[%emt 0:00:00]} Rb8 {[%emt 0:00:11]} 59. b5 {[%emt 0:00:00]} g5 {
[%emt 0:02:12]} 60. Rd6+ {[%emt 0:00:00]} Kf5 {[%emt 0:00:49]} 61. Rd4 {
[%emt 0:00:00]} Rh8 {[%emt 0:00:56]} 62. f3 {[%emt 0:00:00]} h4 {[%emt 0:00:25]
} 63. Rd5+ {[%emt 0:00:00]} Ke6 {[%emt 0:00:36]} 64. gxh4 {[%emt 0:00:00]} gxh4
{[%emt 0:00:14]} 65. b6 {[%emt 0:00:00]} h3 {[%emt 0:00:29]} 66. Rd1 {[%emt 0:
00:00]} Kf5 {[%emt 0:00:42]} 67. Kc5 {[%emt 0:00:08]} Kf4 {[%emt 0:00:22]} 68.
Rf1 {[%emt 0:00:56]} Rc8+ {[%emt 0:00:46]} 69. Kd6 {[%emt 0:00:05]} Rc2 {
[%emt 0:00:30]} 70. Rb1 {[%emt 0:08:14]} Rc8 {[%emt 0:00:10]} 71. Rh1 {[%emt 0:
00:00]} Rh8 {[%emt 0:00:49]} 72. b7 {[%emt 0:00:04]} Kg3 {[%emt 0:00:20]} 73.
f4 {[%emt 0:00:56]} Kg2 {[%emt 0:00:43]} 74. Rb1 {[%emt 0:01:29]} h2 {[%emt 0:
00:00]} 75. f5 {[%emt 0:00:01]} Rf8 {[%emt 0:00:31]} 76. f6 {[%emt 0:01:01]}
Rxf6+ {[%emt 0:00:16]} 77. Ke7 {[%emt 0:00:04]} Rf1 {[%emt 0:00:29]} 78. Rb2+ {
[%emt 0:01:23]} Rf2 {[%emt 0:00:29]} 79. b8=Q {[%emt 0:00:53]} Rxb2 {[%emt 0:
00:00]} 80. Qxb2+ {[%emt 0:00:05]} Kg1 {[%emt 0:00:05]} 81. Qc1+ {[%emt 0:00:
00]} Kg2 {[%emt 0:00:05]} 82. Qd2+ {[%emt 0:00:07]} Kg1 {[%emt 0:00:16]} 83.
Qe1+ {[%emt 0:00:01]} Kg2 {[%emt 0:00:05]} 84. Qe2+ {[%emt 0:00:22]} Kg1 {
[%emt 0:00:07]} 85. Qe3+ {[%emt 0:00:23]} Kg2 {[%emt 0:00:15]} 86. Qg5+ {
[%emt 0:00:40]} Kh1 {[%emt 0:00:26]} 87. Qh4 {[%emt 0:00:38]} Kg2 {[%emt 0:00:
00]} 88. Qg4+ {[%emt 0:00:21]} Kh1 {[%emt 0:00:59]} 1/2-1/2

[Event "44th Chess Olympiad Open 2022"]
[Site "Chennai"]
[Date "2022.08.07"]
[Round "9.65"]
[White "Mambe, Lobognon Anderson O"]
[Black "Florentiades, Michalis"]
[Result "0-1"]
[WhiteElo "1921"]
[BlackElo "1974"]
[Annotator "NA"]
[PlyCount "98"]
[EventDate "2022.??.??"]
[TimeControl "60"]

1. d4 {[%emt 0:00:05]} d5 {[%emt 0:00:06]} 2. Nf3 {[%emt 0:00:32]} Nf6 {
[%emt 0:00:08]} 3. c4 {[%emt 0:00:17]} c6 {[%emt 0:00:10]} 4. Nc3 {[%emt 0:00:
00]} dxc4 {[%emt 0:00:10]} 5. g3 {[%emt 0:01:35]} Bf5 {[%emt 0:01:17]} 6. Bg2 {
[%emt 0:01:03]} h6 {[%emt 0:01:35]} 7. O-O {[%emt 0:00:11]} e6 {[%emt 0:01:41]}
8. Ne5 {[%emt 0:01:38]} Nbd7 {[%emt 0:09:11]} 9. Nxc4 {[%emt 0:00:55]} Nb6 {
[%emt 0:05:40]} 10. Ne5 {[%emt 0:09:02]} Be7 {[%emt 0:06:32]} 11. a4 {[%emt 0:
00:00]} a5 {[%emt 0:02:22]} 12. Qb3 {[%emt 0:03:18]} O-O {[%emt 0:03:35]} 13.
Rd1 {[%emt 0:03:16]} Bb4 {[%emt 0:04:16]} 14. e4 {[%emt 0:01:35]} Bh7 {[%emt 0:
00:00]} 15. f3 {[%emt 0:03:21]} Qe7 {[%emt 0:09:16]} 16. Be3 {[%emt 0:01:29]}
Nbd7 {[%emt 0:02:09]} 17. Nd3 {[%emt 0:00:54]} e5 {[%emt 0:05:13]} 18. d5 {
[%emt 0:05:22]} Nc5 {[%emt 0:01:50]} 19. Nxc5 {[%emt 0:03:00]} Bxc5 {[%emt 0:
00:00]} 20. Bxc5 {[%emt 0:00:54]} Qxc5+ {[%emt 0:00:04]} 21. Kh1 {[%emt 0:00:
00]} Qb4 {[%emt 0:01:44]} 22. Qc2 {[%emt 0:02:27]} Rfd8 {[%emt 0:03:28]} 23.
dxc6 {[%emt 0:00:50]} bxc6 {[%emt 0:01:59]} 24. Rac1 {[%emt 0:06:43]} Bg6 {
[%emt 0:07:30]} 25. Na2 {[%emt 0:04:12]} Qb6 {[%emt 0:00:39]} 26. b3 {[%emt 0:
00:00]} Rab8 {[%emt 0:01:27]} 27. Rb1 {[%emt 0:00:41]} Nd5 {[%emt 0:03:51]} 28.
Qb2 {[%emt 0:04:47]} Ne3 {[%emt 0:04:13]} 29. Rd2 {[%emt 0:03:10]} Rxd2 {
[%emt 0:03:50]} 30. Qxd2 {[%emt 0:00:27]} Rd8 {[%emt 0:00:35]} 31. Qe2 {
[%emt 0:03:01]} Qd4 {[%emt 0:01:29]} 32. Re1 {[%emt 0:02:16]} Nd1 {[%emt 0:00:
00]} 33. h4 {[%emt 0:01:08]} f6 {[%emt 0:05:28]} 34. Qc4+ {[%emt 0:03:30]} Bf7
{[%emt 0:00:28]} 35. Qxc6 {[%emt 0:00:52]} Qd2 {[%emt 0:00:46]} 36. Rg1 {
[%emt 0:01:23]} Qxa2 {[%emt 0:00:44]} 37. Qb6 {[%emt 0:02:28]} Rd2 {[%emt 0:00:
00]} 38. Qc5 {[%emt 0:05:12]} Bxb3 {[%emt 0:00:00]} 39. Qc8+ {[%emt 0:00:27]}
Kh7 {[%emt 0:00:00]} 40. Qf5+ {[%emt 0:00:20]} Kh8 {[%emt 0:00:00]} 41. g4 {
[%emt 0:30:40]} Ne3 {[%emt 0:27:09]} 42. Qc8+ {[%emt 0:03:05]} Bg8 {[%emt 0:00:
00]} 43. g5 {[%emt 0:00:17]} Rxg2 {[%emt 0:00:16]} 44. Qh3 {[%emt 0:00:27]}
Rxg1+ {[%emt 0:03:00]} 45. Kxg1 {[%emt 0:00:16]} Qg2+ {[%emt 0:01:25]} 46. Qxg2
{[%emt 0:00:16]} Nxg2 {[%emt 0:00:03]} 47. Kxg2 {[%emt 0:00:11]} hxg5 {[%emt 0:
00:00]} 48. hxg5 {[%emt 0:00:08]} fxg5 {[%emt 0:00:06]} 49. Kg3 {[%emt 0:00:25]
} Kh7 {[%emt 0:00:05]} 0-1

[Event "44th Chess Olympiad Open 2022"]
[Site "Chennai"]
[Date "2022.08.07"]
[Round "9.65"]
[White "Antoniou, Rafail"]
[Black "Amako Marc Arnold"]
[Result "1-0"]
[WhiteElo "1817"]
[BlackElo "1547"]
[Annotator "NA"]
[PlyCount "109"]
[EventDate "2022.??.??"]
[TimeControl "60"]

1. e4 {[%emt 0:00:15]} e5 {[%emt 0:00:51]} 2. Nf3 {[%emt 0:00:39]} Nf6 {
[%emt 0:00:09]} 3. Nxe5 {[%emt 0:00:43]} d6 {[%emt 0:00:08]} 4. Nf3 {[%emt 0:
00:00]} Nxe4 {[%emt 0:00:08]} 5. c4 {[%emt 0:02:37]} Be7 {[%emt 0:01:13]} 6. d4
{[%emt 0:00:41]} d5 {[%emt 0:00:35]} 7. Bd3 {[%emt 0:13:06]} Bb4+ {[%emt 0:00:
00]} 8. Nbd2 {[%emt 0:00:29]} O-O {[%emt 0:00:46]} 9. O-O {[%emt 0:00:15]} Nxd2
{[%emt 0:02:10]} 10. Bxd2 {[%emt 0:01:32]} Bxd2 {[%emt 0:00:39]} 11. Qxd2 {
[%emt 0:00:05]} dxc4 {[%emt 0:00:11]} 12. Bxc4 {[%emt 0:00:14]} Qf6 {[%emt 0:
00:00]} 13. Rfe1 {[%emt 0:10:17]} Nd7 {[%emt 0:00:15]} 14. Qg5 {[%emt 0:10:02]}
Nb6 {[%emt 0:09:23]} 15. Bb3 {[%emt 0:01:15]} Bd7 {[%emt 0:00:16]} 16. Re7 {
[%emt 0:08:41]} Rac8 {[%emt 0:01:10]} 17. Qc5 {[%emt 0:12:51]} Bg4 {[%emt 0:00:
00]} 18. Ne5 {[%emt 0:06:45]} Be6 {[%emt 0:00:18]} 19. Rxc7 {[%emt 0:01:17]}
Bxb3 {[%emt 0:01:54]} 20. axb3 {[%emt 0:00:07]} Qf4 {[%emt 0:01:44]} 21. g3 {
[%emt 0:03:54]} Qe4 {[%emt 0:09:10]} 22. Rxa7 {[%emt 0:01:43]} Rxc7 {[%emt 0:
00:00]} 23. Qxc7 {[%emt 0:00:02]} Qxd4 {[%emt 0:00:53]} 24. Nf3 {[%emt 0:04:29]
} Qd1+ {[%emt 0:09:45]} 25. Kg2 {[%emt 0:00:01]} Nd5 {[%emt 0:00:18]} 26. Qxb7
{[%emt 0:00:50]} Nf6 {[%emt 0:01:32]} 27. b4 {[%emt 0:01:42]} Qe2 {[%emt 0:00:
00]} 28. Ra8 {[%emt 0:01:38]} Qxb2 {[%emt 0:08:16]} 29. b5 {[%emt 0:01:41]} g6
{[%emt 0:07:25]} 30. Rxf8+ {[%emt 0:02:17]} Kxf8 {[%emt 0:00:28]} 31. b6 {
[%emt 0:01:09]} Kg7 {[%emt 0:01:14]} 32. Qa7 {[%emt 0:04:08]} Qb5 {[%emt 0:00:
00]} 33. b7 {[%emt 0:00:12]} Nd7 {[%emt 0:00:10]} 34. Qd4+ {[%emt 0:00:02]} Nf6
{[%emt 0:02:17]} 35. g4 {[%emt 0:01:33]} Qxb7 {[%emt 0:01:04]} 36. g5 {[%emt 0:
00:00]} Qc6 {[%emt 0:00:21]} 37. gxf6+ {[%emt 0:00:35]} Qxf6 {[%emt 0:00:19]}
38. Kg3 {[%emt 0:01:03]} Qxd4 {[%emt 0:06:19]} 39. Nxd4 {[%emt 0:00:04]} f5 {
[%emt 0:00:12]} 40. Kf4 {[%emt 0:00:54]} Kf6 {[%emt 0:00:36]} 41. h4 {[%emt 0:
00:00]} h6 {[%emt 0:31:12]} 42. Nf3 {[%emt 0:04:03]} Ke6 {[%emt 0:07:33]} 43.
h5 {[%emt 0:00:03]} gxh5 {[%emt 0:00:18]} 44. Nd4+ {[%emt 0:00:31]} Kf6 {
[%emt 0:01:39]} 45. Nxf5 {[%emt 0:00:26]} Kg6 {[%emt 0:00:06]} 46. Nh4+ {
[%emt 0:00:04]} Kf6 {[%emt 0:08:36]} 47. f3 {[%emt 0:00:04]} Ke6 {[%emt 0:00:
00]} 48. Ke4 {[%emt 0:00:06]} Kf6 {[%emt 0:00:00]} 49. f4 {[%emt 0:00:00]} Ke6
{[%emt 0:00:00]} 50. f5+ {[%emt 0:00:00]} Kd6 {[%emt 0:00:00]} 51. Kd4 {
[%emt 0:00:00]} Kd7 {[%emt 0:00:00]} 52. Ke5 {[%emt 0:00:00]} Ke7 {[%emt 0:00:
00]} 53. f6+ {[%emt 0:00:00]} Kf7 {[%emt 0:00:00]} 54. Kf5 {[%emt 0:00:00]} Kf8
{[%emt 0:00:00]} 55. Ke6 {[%emt 0:00:00]} 1-0